fUSD/lending_fUSD_20240404
["ID","MTS","AMOUNT","RATE_DAILY","PERIOD"]
[321500445,1712247049574,-1000.0,0.00045205,7]
[321500446,1712247049584,-1000.0,0.00045205,7]
[321500447,1712247049595,-1000.0,0.00045205,7]
[321500448,1712247049605,-1000.0,0.00045205,7]
[321500449,1712247049615,-1000.0,0.00045205,7]
[321500450,1712247049625,-1000.0,0.00045205,7]
[321500451,1712247049636,-1000.0,0.00045205,7]
[321500452,1712247049646,-1000.0,0.00045205,7]
[321500453,1712247049657,-303.07703697,0.00045205,7]
[321500454,1712247049670,-696.92296303,0.00045205,7]
[321500455,1712247049680,-1000.0,0.00045205,7]
[321500456,1712247049690,-1000.0,0.00045205,7]
[321500457,1712247049705,-1000.0,0.00045205,7]
[321500458,1712247049718,-1000.0,0.00045205,7]
[321500459,1712247049731,-1000.0,0.00045205,7]
[321500460,1712247049742,-1000.0,0.00045205,7]
[321500461,1712247049754,-1000.0,0.00045205,7]
[321500462,1712247049766,-1000.0,0.00045205,7]
[321500463,1712247049778,-1000.0,0.00045205,7]
[321500464,1712247049790,-1000.0,0.00045205,7]
[321500465,1712247049800,-1000.0,0.00045205,7]
[321500466,1712247049810,-1000.0,0.00045205,7]
[321500467,1712247049822,-1000.0,0.00045205,7]
[321500468,1712247049832,-1000.0,0.00045205,7]
[321500469,1712247049843,-1000.0,0.00045205,7]
[321500470,1712247049854,-1000.0,0.00045205,7]
[321500471,1712247049868,-1000.0,0.00045205,7]
[321500472,1712247049878,-1000.0,0.00045205,7]
[321500473,1712247049888,-1000.0,0.00045205,7]
[321500474,1712247049899,-1000.0,0.00045205,7]
[321500475,1712247049909,-1000.0,0.00045205,7]
[321500476,1712247049919,-1000.0,0.00045205,7]
[321500477,1712247049929,-1000.0,0.00045205,7]
[321500478,1712247049939,-1000.0,0.00045205,7]
[321500479,1712247049949,-1000.0,0.00045205,7]
[321500480,1712247049959,-1000.0,0.00045205,7]
[321500481,1712247049968,-1000.0,0.00045205,7]
[321500482,1712247049978,-1000.0,0.00045205,7]
[321500483,1712247049988,-1000.0,0.00045205,7]
[321500484,1712247049998,-1000.0,0.00045205,7]
[321500485,1712247050008,-1000.0,0.00045205,7]
[321500486,1712247050019,-1000.0,0.00045205,7]
[321500487,1712247050028,-1000.0,0.00045205,7]
[321500488,1712247050037,-1000.0,0.00045205,7]
[321500489,1712247050047,-1000.0,0.00045205,7]
[321500490,1712247050057,-1000.0,0.00045205,7]
[321500491,1712247050067,-1000.0,0.00045205,7]
[321500492,1712247050078,-1000.0,0.00045205,7]
[321500493,1712247050088,-1000.0,0.00045205,7]
[321500494,1712247050098,-1000.0,0.00045205,7]
[321500495,1712247050108,-1000.0,0.00045205,7]
[321500496,1712247050119,-1000.0,0.00045205,7]
[321500497,1712247050130,-1000.0,0.00045205,7]
[321500498,1712247050140,-1000.0,0.00045205,7]
[321500499,1712247050150,-1000.0,0.00045205,7]
[321500500,1712247050161,-1000.0,0.00045205,7]
[321500501,1712247050171,-1000.0,0.00045205,7]
[321500502,1712247050181,-1000.0,0.00045205,7]
[321500503,1712247050191,-1000.0,0.00045205,7]
[321500504,1712247050201,-1000.0,0.00045205,7]
[321500505,1712247050212,-1000.0,0.00045205,7]
[321500506,1712247050222,-1000.0,0.00045205,7]
[321500507,1712247050234,-1000.0,0.00045205,7]
[321500508,1712247050245,-1000.0,0.00045205,7]
[321500509,1712247050256,-1000.0,0.00045205,7]
[321500510,1712247050266,-1000.0,0.00045205,7]
[321500511,1712247050277,-1000.0,0.00045205,7]
[321500512,1712247050288,-1000.0,0.00045205,7]
[321500513,1712247050297,-1000.0,0.00045205,7]
[321500514,1712247050307,-1000.0,0.00045205,7]
[321500515,1712247050317,-1000.0,0.00045205,7]
[321500516,1712247050327,-1000.0,0.00045205,7]
[321500517,1712247050337,-1000.0,0.00045205,7]
[321500518,1712247050347,-1000.0,0.00045205,7]
[321500519,1712247050357,-1000.0,0.00045205,7]
[321500520,1712247050368,-1000.0,0.00045205,7]
[321500521,1712247050378,-1000.0,0.00045205,7]
[321500522,1712247050388,-1000.0,0.00045205,7]
[321500523,1712247050398,-56991.16550832,0.00045205,2]
[321500524,1712247050412,-1916.15057211,0.00045205,2]
[321500525,1712247061823,982.36050575,0.00022909,2]
[321500526,1712247061847,1287.38779425,0.00022909,2]
[321500528,1712247206698,155.57425251,0.00022407,2]
[321500530,1712247321725,1000.0,0.00031111,120]
[321500532,1712247629266,362.98591234,0.00019918,2]
[321500533,1712247649393,194.0520409,0.00019917,2]
[321500534,1712247649415,157.95987,0.00019917,2]
[321500535,1712247686591,1842.04013,0.00019917,2]
[321500536,1712247686618,2000.0,0.00019917,2]
[321500537,1712247686645,2000.0,0.00019917,2]
[321500538,1712247686673,2000.0,0.00019917,2]
[321500539,1712247686701,2000.0,0.00019917,2]
[321500540,1712247686730,2000.0,0.00019917,2]
[321500541,1712247686757,2000.0,0.00019917,2]
[321500542,1712247686784,2000.0,0.00019917,2]
[321500543,1712247686812,2000.0,0.00019917,2]
[321500544,1712247686840,2000.0,0.00019917,2]
[321500545,1712247686870,902086.67639896,0.00019917,2]
[321500546,1712247706570,758065.29858774,0.00019917,2]
[321500547,1712247732419,173.41,0.00028903,120]
[321500548,1712247740913,287.56551453,0.00019917,2]
[321500549,1712247760898,385.41300719,0.00019917,2]
[321500550,1712247803269,199.7622544,0.00022962,2]
[321500551,1712247804632,7609.5233811,0.00022961,2]
[321500552,1712247809347,199.7622544,0.00022963,2]
[321500553,1712247810570,921497.43882468,0.00019917,2]
[321500554,1712247828568,147747.57460002,0.00019917,2]
[321500555,1712247844641,2034.835608,0.00022939,2]
[321500556,1712247981431,887.76276437,0.00022945,2]
[321500557,1712248015740,9451.32339768,0.00022939,2]
[321500558,1712248027043,359.14728613,0.00022945,2]
[321500559,1712248031851,298.57199912,0.00022945,2]
[321500560,1712248057268,219.074091,0.00022257,2]
[321500561,1712248059418,7057.02,0.00022768,2]
[321500563,1712248077630,187.77504436,0.00022934,2]
[321500564,1712248116757,152.08,0.00022441,2]
[321500565,1712248116815,152.08,0.00022519,2]
[321500566,1712248116905,152.08,0.00022597,2]
[321500567,1712248117086,152.08,0.00022675,2]
[321500568,1712248117516,152.08,0.00022753,2]
[321500569,1712248117821,152.08,0.00022831,2]
[321500570,1712248118098,152.08,0.00022909,2]
[321500571,1712248118340,152.08,0.00022987,2]
[321500572,1712248122954,11287.1280336,0.00022768,2]
[321500573,1712248128705,15693.1233579,0.00022768,2]
[321500574,1712248146975,861.75,0.00022095,2]
[321500576,1712248156009,1209.98040497,0.00023001,2]
[321500577,1712248156604,166.80371109,0.00023001,2]
[321500578,1712248156933,155.0,0.00023001,2]
[321500579,1712248157806,35142.15424354,0.00023001,2]
[321500580,1712248158213,661.63817277,0.00023001,2]
[321500581,1712248159752,1941.53813649,0.00023001,2]
[321500582,1712248160668,155.0,0.00023001,2]
[321500583,1712248161358,1252.23601784,0.00023001,2]
[321500584,1712248161390,5163.54616856,0.00023001,2]
[321500585,1712248162852,446.65151997,0.00023001,2]
[321500586,1712248164148,1238.05701244,0.00023001,2]
[321500587,1712248165876,362.01382663,0.00023001,2]
[321500588,1712248167222,4188.74393523,0.00023001,2]
[321500589,1712248167256,634.29972815,0.00022934,2]
[321500590,1712248167650,704.13159652,0.00023001,2]
[321500591,1712248168564,3053.54097256,0.00023001,2]
[321500592,1712248168789,2172.31241401,0.00023001,2]
[321500593,1712248169314,155.0,0.00023001,2]
[321500594,1712248170482,1209.98040497,0.00023001,2]
[321500595,1712248170815,4317.7305998,0.00023001,2]
[321500596,1712248170918,155.84441363,0.00023001,2]
[321500597,1712248172151,857.17181074,0.00023001,2]
[321500598,1712248173564,1943.41852209,0.00023001,2]
[321500599,1712248173794,35142.15424354,0.00023001,2]
[321500600,1712248176685,660.88009259,0.00023001,2]
[321500601,1712248176726,4309.13332723,0.00023001,2]
[321500602,1712248177858,207.05796407,0.00023001,2]
[321500603,1712248177913,175.73,0.00017689,2]
[321500604,1712248178160,1238.05701244,0.00023001,2]
[321500605,1712248178518,500.0,0.00023001,2]
[321500606,1712248178664,155.0,0.00023001,2]
[321500607,1712248179083,166.80371109,0.00023001,2]
[321500608,1712248179347,1252.23601784,0.00023001,2]
[321500609,1712248180024,1240.33157319,0.00023001,2]
[321500610,1712248180856,2352.12069937,0.00023001,2]
[321500611,1712248180925,446.65151997,0.00023001,2]
[321500612,1712248181039,669.94916933,0.00023001,2]
[321500613,1712248181277,3155.84658012,0.00023001,2]
[321500614,1712248181657,812.61272696,0.00023001,2]
[321500615,1712248181884,362.01382663,0.00023001,2]
[321500616,1712248182202,522.31122644,0.00023001,2]
[321500617,1712248182474,324.73348101,0.00017688,2]
[321500618,1712248183204,155.39919849,0.00023001,2]
[321500619,1712248183957,681.90393791,0.00017688,2]
[321500620,1712248184364,155.0,0.00017688,2]
[321500621,1712248185222,4188.74393523,0.00023001,2]
[321500622,1712248186411,5959.82587725,0.00023,2]
[321500623,1712248186466,259.0426786,0.00023001,2]
[321500624,1712248186578,3068.58369821,0.00023001,2]
[321500625,1712248186815,4317.7305998,0.00023001,2]
[321500626,1712248187244,1017.6477,0.00022928,2]
[321500627,1712248189451,23277.16713389,0.00023001,2]
[321500628,1712248190019,848.11835002,0.00023001,2]
[321500629,1712248191625,2172.31241401,0.00023001,2]
[321500630,1712248191870,190.47895207,0.00023001,2]
[321500631,1712248191999,1240.33157319,0.00023001,2]
[321500632,1712248192365,206.09224907,0.00023001,2]
[321500633,1712248192415,735.77904189,0.00023001,2]
[321500634,1712248192954,407.75685115,0.00023001,2]
[321500635,1712248194033,425.75453347,0.00023001,2]
[321500636,1712248194154,1238.05701244,0.00023001,2]
[321500637,1712248194237,155.0,0.00023001,2]
[321500638,1712248194295,2748.35006967,0.00023001,2]
[321500639,1712248195047,320.35912514,0.00023001,2]
[321500640,1712248195279,3155.84658012,0.00021851,2]
[321500641,1712248195336,1044.27755831,0.00023001,2]
[321500642,1712248195387,217.34488466,0.00023001,2]
[321500643,1712248195962,788.71072943,0.00023001,2]
[321500644,1712248196711,2352.12069937,0.00023001,2]
[321500645,1712248197216,1221.36561654,0.00023001,2]
[321500646,1712248197501,205.75093505,0.00023001,2]
[321500647,1712248197790,23301.1775553,0.00023001,2]
[321500648,1712248197830,193.75811988,0.00023001,2]
[321500649,1712248197973,706.99577818,0.00023001,2]
[321500650,1712248198518,500.0,0.00023001,2]
[321500651,1712248199353,908.00999226,0.00023001,2]
[321500652,1712248199602,166.80371109,0.00023001,2]
[321500653,1712248199648,5528.27738706,0.00023001,2]
[321500654,1712248199684,407.1301357,0.00023001,2]
[321500655,1712248199974,323.92813763,0.00023001,2]
[321500656,1712248200095,615.83031697,0.00023001,2]
[321500657,1712248200129,5952.39160125,0.00023001,2]
[321500658,1712248200183,522.31122644,0.00023001,2]
[321500659,1712248200394,300.18637425,0.00023001,2]
[321500660,1712248200661,248.48570102,0.00023001,2]
[321500661,1712248201073,202.23259141,0.00023001,2]
[321500662,1712248201134,3372.0620942,0.00023001,2]
[321500663,1712248202147,1000.0,0.00023001,2]
[321500664,1712248202188,150.0,0.00023001,2]
[321500665,1712248202477,324.73348101,0.00023001,2]
[321500666,1712248202818,150.0,0.00023001,2]
[321500667,1712248203228,4188.74393523,0.00023001,2]
[321500668,1712248204232,155.0,0.00023,2]
[321500669,1712248204319,6568.90870912,0.00023001,2]
[321500670,1712248204916,485.70839377,0.00023,2]
[321500671,1712248204957,155.0,0.00023,2]
[321500672,1712248206307,19372.16114064,0.00023001,2]
[321500673,1712248206835,4317.7305998,0.00023001,2]
[321500674,1712248207531,23277.16713389,0.00023001,2]
[321500675,1712248209078,5372.04111444,0.00023001,2]
[321500676,1712248209118,155.0,0.00023001,2]
[321500677,1712248209314,200.0,0.00023001,2]
[321500678,1712248213094,155.0,0.00023001,2]
[321500679,1712248214042,425.75453347,0.00022997,2]
[321500680,1712248217293,3155.84658012,0.00021858,2]
[321500681,1712248218224,155.0,0.00022778,2]
[321500682,1712248226908,425.19622853,0.00023001,2]
[321500683,1712248228044,425.75453347,0.00022997,2]
[321500691,1712248231878,-523.28591813,0.00023007,2]
[321500692,1712248231891,-26.95024172,0.00023007,2]
[321500693,1712248231900,-301.10353283,0.00023007,2]
[321500694,1712248232327,-994.01969346,0.00023007,2]
[321500695,1712248232337,-155.0,0.00023008,2]
[321500696,1712248232346,-201.66643583,0.00023008,2]
[321500697,1712248232355,-404.3815207,0.00023008,2]
[321500698,1712248232365,-262.90696372,0.00023008,2]
[321500699,1712248232374,-342.22701228,0.00023008,2]
[321500700,1712248232384,-878.94837401,0.00023008,2]
[321500701,1712248232413,-2187.01173169,0.00023008,2]
[321500702,1712248232425,-1326.64191263,0.00023008,2]
[321500703,1712248232434,-180.45952597,0.00023009,2]
[321500704,1712248232443,-407.75685115,0.00023009,2]
[321500705,1712248232453,-1044.27755831,0.00023009,2]
[321500706,1712248232462,-205.75093505,0.00023009,2]
[321500707,1712248232471,-248.73766816,0.00023009,2]
[321500708,1712248232481,-748.17530261,0.00023009,2]
[321500709,1712248232491,-155.87962039,0.00023009,2]
[321500710,1712248232500,-407.1301357,0.00023009,2]
[321500711,1712248232510,-500.0,0.00023009,2]
[321500712,1712248232519,-217.34488466,0.00023009,2]
[321500713,1712248232529,-193.75811988,0.00023009,2]
[321500714,1712248232538,-594.47312192,0.00023009,2]
[321500715,1712248232549,-448.11857518,0.00023009,2]
[321500716,1712248232558,-615.83031697,0.00023009,2]
[321500717,1712248232568,-3372.0620942,0.00023009,2]
[321500718,1712248232578,-166.80371109,0.00023009,2]
[321500719,1712248232587,-1000.0,0.00023009,2]
[321500720,1712248232597,-5474.09059094,0.00023009,2]
[321500721,1712248232606,-2018.29327895,0.00023009,2]
[321500722,1712248232615,-485.70839377,0.00023009,2]
[321500723,1712248232625,-155.47530298,0.00023009,2]
[321500724,1712248232634,-1221.36561654,0.00023009,2]
[321500725,1712248232643,-324.73348101,0.00023009,2]
[321500727,1712248232652,-37.82827381,0.00023009,2]
[321500731,1712248232684,-799.69047566,0.00023009,2]
[321500733,1712248232694,-245.97935555,0.00023009,2]
[321500735,1712248232704,-186.31624088,0.00023009,2]
[321500737,1712248232716,-3739.38438939,0.00023009,2]
[321500738,1712248232728,-457.0,0.00023009,2]
[321500739,1712248232743,-13588.3224,0.00023009,2]
[321500755,1712248232975,-5306.14410362,0.00023009,2]
[321500758,1712248232986,-5372.04111444,0.00023009,2]
[321500760,1712248232996,-1440.24274728,0.00023009,2]
[321500761,1712248233006,-522.31122644,0.00023009,2]
[321500763,1712248233016,-1009.05535847,0.00023009,2]
[321500765,1712248233026,-206.09224907,0.0002301,2]
[321500768,1712248233036,-2172.31241401,0.0002301,2]
[321500769,1712248233049,-5528.27738706,0.0002301,2]
[321500771,1712248233059,-7822.99,0.00023011,2]
[321500773,1712248233069,-25750.86370061,0.00023011,2]
[321500776,1712248233079,-171.88,0.00023024,2]
[321500778,1712248233089,-171.88,0.00023024,2]
[321500780,1712248233100,-163.87560073,0.00023027,2]
[321500782,1712248233115,-734.38,0.00023028,2]
[321500784,1712248233125,-150.99,0.00023029,2]
[321500786,1712248233136,-191.36845549,0.00023031,2]
[321500787,1712248233147,-155.92682685,0.00023031,2]
[321500788,1712248233157,-254.85978372,0.00023031,2]
[321500789,1712248233167,-231.96521014,0.00023032,2]
[321500790,1712248233177,-183.47976869,0.00023032,2]
[321500791,1712248233188,-155.0,0.00023033,2]
[321500792,1712248233200,-356.67775819,0.00023033,2]
[321500793,1712248233210,-215.33858005,0.00023033,2]
[321500794,1712248233221,-170.62790356,0.00023033,2]
[321500795,1712248233232,-169.2909977,0.00023034,2]
[321500796,1712248233242,-247709.22469089,0.00023034,2]
[321500797,1712248233254,-2051.51390259,0.00023034,2]
[321500798,1712248233265,-319.91350895,0.00023034,2]
[321500799,1712248233277,-2207.12351952,0.00023034,2]
[321500800,1712248233288,-2070.48000005,0.00023034,2]
[321500801,1712248233302,-281.50068486,0.00023034,2]
[321500826,1712248237918,-155.8039683,0.00023007,2]
[321500827,1712248237928,-2535.08836328,0.00023009,2]
[321500828,1712248237937,-500.0,0.0002301,2]
[321500829,1712248237947,-500.0,0.0002301,2]
[321500830,1712248237956,-6137.8410369,0.00023034,2]
[321500831,1712248237988,-157415.44613986,0.00023034,2]
[321500832,1712248237998,-269.97254653,0.00023034,2]
[321500833,1712248238007,-597.00433138,0.00023036,2]
[321500834,1712248238018,-307.39128717,0.0002304,2]
[321500835,1712248238027,-1463.67452271,0.0002304,2]
[321500836,1712248238037,-990.6155768,0.00023045,2]
[321500837,1712248238046,-8678.53,0.00023045,2]
[321500838,1712248238055,-401.78894169,0.00023048,2]
[321500839,1712248238064,-1236.83,0.0002306,2]
[321500840,1712248238074,-152.08,0.00023065,2]
[321500841,1712248238083,-152.08,0.00023143,2]
[321500842,1712248238092,-155.0,0.00023179,2]
[321500843,1712248238102,-597.00433138,0.0002318,2]
[321500844,1712248238113,-524.78067754,0.00023181,2]
[321500845,1712248238125,-672.48492565,0.00023185,2]
[321500846,1712248238135,-155.0,0.00023187,2]
[321500847,1712248238145,-155.0,0.00023187,2]
[321500848,1712248238154,-152.08,0.00023221,2]
[321500849,1712248238164,-152.08,0.00023299,2]
[321500850,1712248238174,-152.08,0.00023377,2]
[321500851,1712248238184,-152.08,0.00023455,2]
[321500852,1712248238195,-152.08,0.00023533,2]
[321500853,1712248238204,-152.08,0.00023611,2]
[321500854,1712248238215,-4005.0,0.00024094,2]
[321500855,1712248238224,-159.19600813,0.00024698,2]
[321500856,1712248238233,-22919.88670137,0.00024798,2]
[321500857,1712248238243,-2974.3697,0.00024798,2]
[321500858,1712248238252,-1584.19132274,0.00024799,2]
[321500859,1712248238262,-500.0,0.00024857,2]
[321500860,1712248238271,-200.0,0.00024877,2]
[321500861,1712248238280,-605.28486639,0.00024886,2]
[321500862,1712248238291,-567.84532603,0.00024888,2]
[321500863,1712248238301,-500.79330769,0.00024888,2]
[321500864,1712248238310,-634.29972811,0.00024889,2]
[321500865,1712248238319,-155.0,0.00024896,2]
[321500866,1712248238329,-155.0,0.00024896,2]
[321500867,1712248238338,-261.23037976,0.00024896,2]
[321500868,1712248238347,-155.0,0.00024896,2]
[321500869,1712248238356,-10530.94919695,0.00024896,2]
[321500870,1712248238366,-3854.39454608,0.00024898,2]
[321500872,1712248238375,-173.53803921,0.00024898,2]
[321500874,1712248238385,-155.0,0.00024898,2]
[321500876,1712248238394,-165.49298639,0.00024898,2]
[321500878,1712248238403,-155.0,0.00024898,2]
[321500879,1712248238413,-537.18499052,0.00024899,2]
[321500880,1712248238423,-6786.15,0.000249,2]
[321500883,1712248238432,-300.0,0.00024999,2]
[321500885,1712248238442,-259.25084898,0.00024999,2]
[321500887,1712248238451,-210.0,0.00025301,2]
[321500889,1712248238460,-1236.83,0.00025324,2]
[321500891,1712248238468,-159.19600813,0.00025506,2]
[321500893,1712248238477,-7057.02,0.00025508,2]
[321500895,1712248238486,-23900.0,0.00025597,2]
[321500896,1712248238496,-548.23,0.0002573,2]
[321500897,1712248238505,-250.0,0.00025915,2]
[321500898,1712248238515,-159.19600813,0.00026314,2]
[321500899,1712248238525,-887.76276432,0.00026698,3]
[321500900,1712248238535,-634.29972811,0.00026845,2]
[321500901,1712248238545,-2751.0,0.00026973,2]
[321500902,1712248238554,-155.76223834,0.00027,2]
[321500903,1712248238564,-159.19600813,0.00027122,2]
[321500904,1712248238574,-417.98042323,0.00027397,2]
[321500905,1712248238585,-250.0,0.00027397,2]
[321500906,1712248238594,-171.88,0.00027566,2]
[321500907,1712248238604,-22919.88670129,0.00027576,2]
[321500908,1712248238614,-1236.83,0.00027588,2]
[321500909,1712248238623,-159.19600813,0.0002793,2]
[321500910,1712248238632,-200.0,0.00027974,2]
[321500911,1712248238642,-150.0,0.00027974,2]
[321500912,1712248238651,-250.0,0.00028184,2]
[321500913,1712248238660,-1766.26,0.00028199,2]
[321500914,1712248238669,-538.68,0.00028199,2]
[321500915,1712248238678,-172.54,0.00028206,2]
[321500916,1712248238687,-7057.02,0.00028248,2]
[321500917,1712248238696,-159.19600813,0.00028738,2]
[321500918,1712248238706,-634.29972811,0.000288,2]
[321500919,1712248238716,-500.0,0.00028809,2]
[321500920,1712248238726,-560.73809275,0.00029,2]
[321500921,1712248238735,-12342.63,0.00029053,2]
[321500922,1712248238744,-3076.01,0.00029075,2]
[321500923,1712248238754,-157.20790057,0.00029148,2]
[321500924,1712248238763,-302.8113,0.00029348,2]
[321500925,1712248238773,-1383.88,0.00029448,2]
[321500926,1712248238782,-159.19600813,0.00029545,2]
[321500927,1712248238792,-1236.83,0.00029852,2]
[321500928,1712248238802,-2640.21942399,0.0002999,2]
[321500929,1712248238813,-3206.28076084,0.0003,2]
[321500930,1712248238823,-200.0,0.0003,7]
[321500931,1712248238833,-200.0,0.0003,7]
[321500932,1712248238843,-6325.49450819,0.0003,4]
[321500933,1712248238874,-12968.62626352,0.0003,4]
[321500934,1712248238885,-8978.73687988,0.0003,4]
[321500935,1712248238895,-511.83608368,0.0003,4]
[321500936,1712248238905,-405.14841286,0.0003,4]
[321500937,1712248238915,-606.74427312,0.0003,4]
[321500938,1712248238925,-159.19600813,0.00030353,2]
[321500939,1712248238934,-22919.88670129,0.00030354,2]
[321500940,1712248238944,-887.76276432,0.00030451,5]
[321500941,1712248238956,-634.29972811,0.00030756,2]
[321500942,1712248238969,-20081.1329,0.00030911,2]
[321500943,1712248238981,-348.8882,0.00030911,2]
[321500944,1712248238991,-861.75,0.00030933,2]
[321500945,1712248239002,-499.99,0.00031108,2]
[321500946,1712248239011,-1515.32,0.00031108,2]
[321500947,1712248239022,-200.0,0.00031111,2]
[321500948,1712248239032,-159.19600813,0.00031161,2]
[321500949,1712248239045,-180.0,0.00031342,2]
[321500950,1712248239056,-159.19600813,0.00031969,2]
[321500951,1712248239067,-1236.83,0.00032116,2]
[321500952,1712248239079,-634.29972811,0.00032711,2]
[321500953,1712248239090,-159.19600813,0.00032777,2]
[321500954,1712248239101,-156.25,0.00032877,2]
[321500955,1712248239114,-156.25,0.00032877,2]
[321500956,1712248239124,-156.14,0.00032877,2]
[321500957,1712248239135,-156.25,0.00032877,2]
[321500958,1712248239146,-22919.88670129,0.00033132,2]
[321500959,1712248239158,-887.76276432,0.00034204,6]
[321500960,1712248239169,-1236.83,0.0003438,2]
[321500961,1712248239179,-634.29972811,0.00034667,2]
[321500962,1712248239189,-178.4391163,0.00035104,7]
[321500963,1712248239201,-170.84,0.00035204,2]
[321500964,1712248239211,-1000.0,0.00035759,2]
[321500965,1712248239222,-22919.88670129,0.0003591,2]
[321500966,1712248239232,-156.14,0.00036164,2]
[321500967,1712248239243,-634.29972811,0.00036622,2]
[321500968,1712248239254,-1236.83,0.00036644,2]
[321500969,1712248239264,-171.88,0.0003699,2]
[321500970,1712248239274,-590.77920168,0.00037,2]
[321500971,1712248239284,-898.22101262,0.00037,2]
[321500972,1712248239295,-51057.84836432,0.00037,2]
[321500973,1712248239306,-2150.83609999,0.0003711,10]
[321500974,1712248239316,-1000.0,0.00037273,2]
[321500975,1712248239326,-1000.0,0.00037273,2]
[321500976,1712248239337,-1000.0,0.00037273,2]
[321500977,1712248239347,-1000.0,0.00037273,2]
[321500978,1712248239360,-1000.0,0.00037273,2]
[321500979,1712248239371,-682.05888116,0.00037273,2]
[321500980,1712248239380,-887.76276432,0.00037956,8]
[321500981,1712248239390,-2271.87,0.00038027,15]
[321500982,1712248239402,-150.0,0.00038046,120]
[321500983,1712248239411,-2150.83609991,0.00038285,11]
[321500984,1712248239421,-634.29972811,0.00038577,2]
[321500985,1712248239430,-153.6146946,0.00038588,2]
[321500986,1712248239440,-3991.0,0.00038642,2]
[321500987,1712248239449,-1347.46,0.00038675,2]
[321500988,1712248239460,-22919.88670129,0.00038688,2]
[321500989,1712248239470,-155.97526314,0.000387,4]
[321500990,1712248239480,-150.0,0.00038716,120]
[321500991,1712248239490,-152.0,0.00038716,3]
[321500992,1712248239501,-275.5,0.000389,2]
[321500993,1712248239512,-4065.34553289,0.000389,15]
[321500994,1712248239521,-1236.83,0.00038908,2]
[321500995,1712248239531,-1211.0,0.00039,4]
[321500996,1712248239540,-7263.28347,0.00039,2]
[321500997,1712248239551,-320.0,0.0003917,30]
[321500998,1712248239561,-150.0,0.0003917,2]
[321500999,1712248239570,-161.78661305,0.0003917,28]
[321501000,1712248239580,-151.0,0.00039422,2]
[321501001,1712248239589,-1766.26,0.00039431,2]
[321501002,1712248239598,-156.14,0.00039452,2]
[321501003,1712248239608,-2150.83609991,0.0003946,13]
[321501004,1712248239617,-377.13,0.00039482,2]
[321501005,1712248239627,-1000.0,0.00039482,2]
[321501006,1712248239636,-1424.89,0.00039482,2]
[321501008,1712248239645,-377.13,0.00039492,2]
[321501009,1712248239654,-377.13,0.00039503,2]
[321501011,1712248239664,-377.13,0.00039513,2]
[321501013,1712248239673,-377.13,0.00039524,2]
[321501015,1712248239683,-377.13,0.00039534,2]
[321501016,1712248239692,-377.13,0.00039544,2]
[321501018,1712248239702,-377.13,0.00039555,2]
[321501020,1712248239712,-377.13,0.00039565,2]
[321501022,1712248239722,-152.0,0.00039569,4]
[321501024,1712248239731,-377.13,0.00039576,2]
[321501025,1712248239742,-377.13,0.00039586,2]
[321501026,1712248239753,-377.13,0.00039596,2]
[321501028,1712248239764,-377.13,0.00039607,2]
[321501030,1712248239773,-377.13,0.00039617,2]
[321501032,1712248239783,-377.13,0.00039627,2]
[321501033,1712248239792,-377.13,0.00039638,2]
[321501035,1712248239803,-377.13,0.00039648,2]
[321501038,1712248239812,-377.13,0.00039659,2]
[321501041,1712248239822,-377.13,0.00039669,2]
[321501044,1712248239832,-377.13,0.00039679,2]
[321501047,1712248239842,-1584.19132275,0.00039798,2]
[321501049,1712248239851,-150.0,0.0003987,120]
[321501052,1712248239861,-2005.68401977,0.00039896,4]
[321501055,1712248239871,-400.0,0.00039896,2]